[Event "*** Titled Tuesday 3|2 Blitz (Early)"]
[Site "Chess.com"]
[Date "2016.12.06"]
[Round "7"]
[White "RamonManon0g"]
[Black "Hieronymus00"]
[Result "0-1"]
[WhiteElo "2273"]
[BlackElo "2122"]
[TimeControl "180+2"]
[EndTime "12:32:23 PST"]
[Termination "Hieronymus00 won by resignation"]

1. d4 {[%clk 0:03:02]} 1... Nf6 {[%clk 0:02:59.5]} 2. Bg5 {[%clk 0:03:02.9]}
2... c5 {[%clk 0:02:59.4]} 3. d5 {[%clk 0:03:02.4]} 3... Qb6 {[%clk 0:02:59.9]}
4. Bxf6 {[%clk 0:03:03.3]} 4... Qxf6 {[%clk 0:02:53.3]} 5. Nc3 {[%clk
0:03:04.1]} 5... g6 {[%clk 0:02:44.3]} 6. e4 {[%clk 0:03:04.8]} 6... Bg7 {[%clk
0:02:44.1]} 7. Nf3 {[%clk 0:03:05.8]} 7... d6 {[%clk 0:02:42.9]} 8. Be2 {[%clk
0:03:06.9]} 8... O-O {[%clk 0:02:43.6]} 9. O-O {[%clk 0:03:08.2]} 9... a6 {[%clk
0:02:42.5]} 10. a4 {[%clk 0:03:09]} 10... b6 {[%clk 0:02:41.8]} 11. h3 {[%clk
0:03:10.1]} 11... Nd7 {[%clk 0:02:40.4]} 12. Qd2 {[%clk 0:03:11]} 12... Rb8
{[%clk 0:02:27.7]} 13. Qe3 {[%clk 0:03:07.2]} 13... e6 {[%clk 0:02:17.8]} 14.
dxe6 {[%clk 0:03:06.8]} 14... fxe6 {[%clk 0:02:18]} 15. Rad1 {[%clk 0:03:07.7]}
15... Qe7 {[%clk 0:02:00.9]} 16. Bc4 {[%clk 0:02:58.5]} 16... Kh8 {[%clk
0:01:46.6]} 17. Qg5 {[%clk 0:02:52.5]} 17... Bf6 {[%clk 0:01:23.3]} 18. Qg3
{[%clk 0:02:51.4]} 18... Ne5 {[%clk 0:01:20.4]} 19. Nxe5 {[%clk 0:02:42.6]}
19... Bxe5 {[%clk 0:01:21.2]} 20. f4 {[%clk 0:02:44.5]} 20... Bg7 {[%clk
0:01:14.5]} 21. b3 {[%clk 0:02:40.5]} 21... Bd7 {[%clk 0:01:09.3]} 22. Ne2
{[%clk 0:02:38]} 22... b5 {[%clk 0:01:05.8]} 23. axb5 {[%clk 0:02:36.6]} 23...
axb5 {[%clk 0:01:06]} 24. Bd3 {[%clk 0:02:38.2]} 24... d5 {[%clk 0:01:02]} 25.
c4 {[%clk 0:02:25.3]} 25... bxc4 {[%clk 0:00:45.8]} 26. bxc4 {[%clk 0:02:27.2]}
26... Rb3 {[%clk 0:00:42.6]} 27. Qf2 {[%clk 0:02:17]} 27... Bc6 {[%clk 0:00:35]}
28. e5 {[%clk 0:02:01.9]} 28... d4 {[%clk 0:00:21.8]} 29. Qe1 {[%clk 0:01:55.7]}
29... Qb7 {[%clk 0:00:18.8]} 30. Rf2 {[%clk 0:01:55.3]} 30... Be4 {[%clk
0:00:18.3]} 31. Nc1 {[%clk 0:01:49.7]} 31... Bxd3 {[%clk 0:00:12.7]} 32. Nxb3
{[%clk 0:01:33.7]} 32... Qxb3 {[%clk 0:00:13.3]} 33. Rf3 {[%clk 0:01:35.1]}
33... Qxc4 {[%clk 0:00:11.1]} 34. Rdxd3 {[%clk 0:01:33.9]} 34... Rxf4 {[%clk
0:00:09.5]} 35. Qf2 {[%clk 0:01:29.7]} 35... Rf5 {[%clk 0:00:09]} 36. g4 {[%clk
0:01:28.7]} 36... Rxf3 {[%clk 0:00:07.7]} 37. Qxf3 {[%clk 0:01:30.6]} 37... Qd5
{[%clk 0:00:06.1]} 38. Qf7 {[%clk 0:01:20.6]} 38... h6 {[%clk 0:00:05.9]} 39.
Qxg6 {[%clk 0:01:15.1]} 39... Qxe5 {[%clk 0:00:06.5]} 40. Rf3 {[%clk 0:01:05.1]}
40... c4 {[%clk 0:00:05.1]} 41. h4 {[%clk 0:00:51.6]} 41... d3 {[%clk
0:00:06.1]} 42. Qe8+ {[%clk 0:00:43.3]} 42... Kh7 {[%clk 0:00:06.7]} 43. h5
{[%clk 0:00:40.2]} 43... d2 {[%clk 0:00:06.9]} 44. Qg6+ {[%clk 0:00:35.6]} 44...
Kh8 {[%clk 0:00:08]} 45. Qc2 {[%clk 0:00:31.5]} 45... Qe1+ {[%clk 0:00:08.4]}
46. Rf1 {[%clk 0:00:32.5]} 46... Qe3+ {[%clk 0:00:09]} 47. Kg2 {[%clk
0:00:32.1]} 47... c3 {[%clk 0:00:09.8]} 48. Qd1 {[%clk 0:00:28.5]} 48... Qe4+
{[%clk 0:00:09.6]} 49. Qf3 {[%clk 0:00:28.5]} 49... Qxf3+ {[%clk 0:00:10.1]} 50.
Rxf3 {[%clk 0:00:29.7]} 50... d1=Q {[%clk 0:00:10.9]} 51. Kg3 {[%clk 0:00:27.4]}
51... Qd2 {[%clk 0:00:11.9]} 52. Rf2 {[%clk 0:00:27.8]} 52... Qxf2+ {[%clk
0:00:12.8]} 53. Kxf2 {[%clk 0:00:29.1]} 53... c2 {[%clk 0:00:14.4]} 0-1

[Event "*** Titled Tuesday 3|2 Blitz (Early)"]
[Site "Chess.com"]
[Date "2016.12.06"]
[Round "7"]
[White "GMKrikor"]
[Black "josiwales"]
[Result "1-0"]
[WhiteElo "2523"]
[BlackElo "2242"]
[TimeControl "180+2"]
[EndTime "12:32:40 PST"]
[Termination "GMKrikor won by checkmate"]

1. d4 {[%clk 0:03:02]} 1... Nf6 {[%clk 0:03:00.8]} 2. c4 {[%clk 0:03:03.1]} 2...
g6 {[%clk 0:03:02.2]} 3. Nc3 {[%clk 0:03:02.5]} 3... Bg7 {[%clk 0:03:03.9]} 4.
e4 {[%clk 0:03:03]} 4... d6 {[%clk 0:03:05.5]} 5. f3 {[%clk 0:03:03.1]} 5... O-O
{[%clk 0:03:06.3]} 6. Be3 {[%clk 0:03:04.4]} 6... Nbd7 {[%clk 0:03:06.8]} 7. Qd2
{[%clk 0:03:04.8]} 7... e5 {[%clk 0:03:08.1]} 8. d5 {[%clk 0:03:06.3]} 8... a5
{[%clk 0:03:08.9]} 9. O-O-O {[%clk 0:03:00.2]} 9... Nc5 {[%clk 0:03:08.1]} 10.
Kb1 {[%clk 0:03:01.2]} 10... b6 {[%clk 0:03:09.1]} 11. Nge2 {[%clk 0:03:01]}
11... Nfd7 {[%clk 0:03:08.3]} 12. Nc1 {[%clk 0:02:57.9]} 12... f5 {[%clk
0:03:09.3]} 13. Bd3 {[%clk 0:02:59.2]} 13... f4 {[%clk 0:03:09.5]} 14. Bf2
{[%clk 0:03:00]} 14... Nf6 {[%clk 0:03:11.1]} 15. b3 {[%clk 0:02:52.2]} 15... g5
{[%clk 0:03:07.6]} 16. h3 {[%clk 0:02:48.7]} 16... h5 {[%clk 0:03:08.3]} 17. Bc2
{[%clk 0:02:49.2]} 17... h4 {[%clk 0:03:08]} 18. Nd3 {[%clk 0:02:18.6]} 18...
Bd7 {[%clk 0:03:06.6]} 19. Rc1 {[%clk 0:02:02.6]} 19... Qe7 {[%clk 0:03:07]} 20.
Bd1 {[%clk 0:01:47]} 20... Rfb8 {[%clk 0:03:04.1]} 21. Be2 {[%clk 0:01:41.9]}
21... Nh5 {[%clk 0:02:54.8]} 22. Rhd1 {[%clk 0:01:31.8]} 22... Qe8 {[%clk
0:02:51.8]} 23. Nb5 {[%clk 0:01:13.9]} 23... Rb7 {[%clk 0:02:37.6]} 24. Qc2
{[%clk 0:00:36]} 24... Bf6 {[%clk 0:02:36.6]} 25. Nxc5 {[%clk 0:00:19.4]} 25...
bxc5 {[%clk 0:02:35.2]} 26. a4 {[%clk 0:00:18.5]} 26... Bd8 {[%clk 0:02:31.6]}
27. Be1 {[%clk 0:00:19.3]} 27... Nf6 {[%clk 0:02:32.1]} 28. Bc3 {[%clk
0:00:19.1]} 28... Qg6 {[%clk 0:02:22.3]} 29. Qd2 {[%clk 0:00:18.4]} 29... Kg7
{[%clk 0:02:18.9]} 30. Bxa5 {[%clk 0:00:14.8]} 30... Nh5 {[%clk 0:02:12.5]} 31.
Bc3 {[%clk 0:00:15.2]} 31... Ng3 {[%clk 0:02:13.4]} 32. Bd3 {[%clk 0:00:15.6]}
32... Be7 {[%clk 0:01:59.1]} 33. Kb2 {[%clk 0:00:17]} 33... c6 {[%clk
0:01:49.1]} 34. dxc6 {[%clk 0:00:16]} 34... Bxc6 {[%clk 0:01:51]} 35. Bc2 {[%clk
0:00:17.5]} 35... Bxb5 {[%clk 0:01:45.3]} 36. cxb5 {[%clk 0:00:17.8]} 36... Qe6
{[%clk 0:01:45.3]} 37. Bd3 {[%clk 0:00:18]} 37... Nh5 {[%clk 0:01:35.8]} 38. Bc4
{[%clk 0:00:19.2]} 38... Qd7 {[%clk 0:01:37.1]} 39. Bxe5+ {[%clk 0:00:15.6]}
39... Kg6 {[%clk 0:01:32.6]} 40. Bc3 {[%clk 0:00:16.4]} 40... Rbb8 {[%clk
0:01:27]} 41. e5 {[%clk 0:00:17.4]} 41... Ng7 {[%clk 0:01:20.8]} 42. exd6 {[%clk
0:00:17.8]} 42... Bf6 {[%clk 0:01:21.8]} 43. Qd3+ {[%clk 0:00:19.4]} 43... Nf5
{[%clk 0:01:22.4]} 44. Re1 {[%clk 0:00:14]} 44... Re8 {[%clk 0:01:17.2]} 45. Re4
{[%clk 0:00:07.4]} 45... Qxd6 {[%clk 0:01:09]} 46. Qxd6 {[%clk 0:00:07]} 46...
Nxd6 {[%clk 0:01:10.9]} 47. Bd3 {[%clk 0:00:05.8]} 47... Kg7 {[%clk 0:01:04.2]}
48. Bxf6+ {[%clk 0:00:05.7]} 48... Kxf6 {[%clk 0:01:05.3]} 49. Rxe8 {[%clk
0:00:07]} 49... Rxe8 {[%clk 0:01:07.2]} 50. Rxc5 {[%clk 0:00:08.4]} 50... Re3
{[%clk 0:01:05.8]} 51. Kc2 {[%clk 0:00:10]} 51... Ke6 {[%clk 0:01:03.9]} 52. b6
{[%clk 0:00:11.3]} 52... Kd7 {[%clk 0:00:59]} 53. a5 {[%clk 0:00:11.6]} 53...
Re8 {[%clk 0:00:57.8]} 54. a6 {[%clk 0:00:12.4]} 54... Nc8 {[%clk 0:00:50.5]}
55. Bf5+ {[%clk 0:00:09]} 55... Kd6 {[%clk 0:00:45.4]} 56. Rxc8 {[%clk
0:00:10.1]} 56... Re5 {[%clk 0:00:44]} 57. b7 {[%clk 0:00:10.6]} 57... Rxf5
{[%clk 0:00:45.9]} 58. b8=Q+ {[%clk 0:00:11.8]} 58... Kd5 {[%clk 0:00:47.6]} 59.
Qb5+ {[%clk 0:00:11.8]} 59... Kd4 {[%clk 0:00:49.5]} 60. Qxf5 {[%clk 0:00:12.2]}
60... Ke3 {[%clk 0:00:51.4]} 61. Qxg5 {[%clk 0:00:13.1]} 61... Kf2 {[%clk
0:00:53.3]} 62. Qxh4+ {[%clk 0:00:14.1]} 62... Kxg2 {[%clk 0:00:55.2]} 63. Qg4+
{[%clk 0:00:15.3]} 63... Kh2 {[%clk 0:00:56.4]} 64. Re8 {[%clk 0:00:16]} 64...
Kh1 {[%clk 0:00:58.3]} 65. Re4 {[%clk 0:00:16.1]} 65... Kh2 {[%clk 0:01:00.2]}
66. Re2+ {[%clk 0:00:17.4]} 66... Kh1 {[%clk 0:01:00.9]} 67. Qg2# {[%clk
0:00:19.1]} 1-0

[Event "*** Titled Tuesday 3|2 Blitz (Early)"]
[Site "Chess.com"]
[Date "2016.12.06"]
[Round "7"]
[White "GM_Donatello"]
[Black "ulises2013"]
[Result "1-0"]
[WhiteElo "2577"]
[BlackElo "2298"]
[TimeControl "180+2"]
[EndTime "12:32:45 PST"]
[Termination "GM_Donatello won by checkmate"]

1. e4 {[%clk 0:03:02]} 1... g6 {[%clk 0:02:56.8]} 2. d4 {[%clk 0:03:02.7]} 2...
Bg7 {[%clk 0:02:58.3]} 3. Nc3 {[%clk 0:03:04.3]} 3... c5 {[%clk 0:02:59.8]} 4.
dxc5 {[%clk 0:03:05]} 4... Bxc3+ {[%clk 0:03:00.2]} 5. bxc3 {[%clk 0:03:05.6]}
5... Qa5 {[%clk 0:03:01.7]} 6. Qd4 {[%clk 0:03:05]} 6... Nf6 {[%clk 0:03:01.8]}
7. f3 {[%clk 0:03:01.7]} 7... Nc6 {[%clk 0:02:52.6]} 8. Qc4 {[%clk 0:03:02.3]}
8... Ne5 {[%clk 0:02:41.9]} 9. Qb4 {[%clk 0:03:01.6]} 9... Qc7 {[%clk
0:02:42.4]} 10. Ne2 {[%clk 0:02:56.4]} 10... Nc6 {[%clk 0:02:42.8]} 11. Qa3
{[%clk 0:02:55.9]} 11... O-O {[%clk 0:02:39.7]} 12. Bf4 {[%clk 0:02:52.6]} 12...
Qa5 {[%clk 0:02:29.8]} 13. Qxa5 {[%clk 0:02:50.5]} 13... Nxa5 {[%clk 0:02:31.7]}
14. Nd4 {[%clk 0:02:50.9]} 14... b6 {[%clk 0:02:22.7]} 15. cxb6 {[%clk
0:02:10.6]} 15... axb6 {[%clk 0:02:22.8]} 16. Bc7 {[%clk 0:02:06.1]} 16... Ba6
{[%clk 0:02:14.8]} 17. Bxb6 {[%clk 0:01:40.5]} 17... Bxf1 {[%clk 0:02:14.6]} 18.
Rxf1 {[%clk 0:01:42.2]} 18... Nc4 {[%clk 0:02:15.3]} 19. Bc5 {[%clk 0:01:43.5]}
19... d6 {[%clk 0:02:13.1]} 20. Bb4 {[%clk 0:01:44.4]} 20... Ra4 {[%clk
0:01:46.7]} 21. Ke2 {[%clk 0:01:27.1]} 21... Rfa8 {[%clk 0:01:44.3]} 22. a3
{[%clk 0:01:28]} 22... Nxa3 {[%clk 0:01:26.3]} 23. Bxa3 {[%clk 0:01:25.3]} 23...
Rxa3 {[%clk 0:01:27.2]} 24. Rxa3 {[%clk 0:01:27.2]} 24... Rxa3 {[%clk
0:01:28.4]} 25. Kd2 {[%clk 0:01:27]} 25... Nd7 {[%clk 0:01:20.8]} 26. Rb1 {[%clk
0:01:28]} 26... Ne5 {[%clk 0:01:20.1]} 27. Rb7 {[%clk 0:01:28.8]} 27... Nc4+
{[%clk 0:01:13.6]} 28. Kd3 {[%clk 0:01:29.9]} 28... Ne5+ {[%clk 0:01:14.7]} 29.
Ke2 {[%clk 0:01:29.6]} 29... Rxc3 {[%clk 0:01:10.5]} 30. Rxe7 {[%clk 0:01:07.3]}
30... Rc4 {[%clk 0:01:02.2]} 31. Ke3 {[%clk 0:01:08.2]} 31... Rc3+ {[%clk
0:00:51.7]} 32. Kd2 {[%clk 0:01:08.2]} 32... Rc4 {[%clk 0:00:51.2]} 33. c3
{[%clk 0:01:09.4]} 33... Ra4 {[%clk 0:00:50.7]} 34. Rc7 {[%clk 0:01:02.4]} 34...
Nc4+ {[%clk 0:00:48.3]} 35. Kd3 {[%clk 0:01:02.1]} 35... Ne5+ {[%clk 0:00:48.8]}
36. Ke3 {[%clk 0:01:03.4]} 36... Ra2 {[%clk 0:00:43.3]} 37. Ne2 {[%clk
0:01:04.2]} 37... Kf8 {[%clk 0:00:33.7]} 38. h3 {[%clk 0:01:04.8]} 38... Ra4
{[%clk 0:00:26.4]} 39. Nf4 {[%clk 0:00:58.1]} 39... Nc4+ {[%clk 0:00:22.9]} 40.
Kf2 {[%clk 0:00:59.1]} 40... Ne5 {[%clk 0:00:21.7]} 41. h4 {[%clk 0:00:51.1]}
41... h6 {[%clk 0:00:20.9]} 42. g4 {[%clk 0:00:47.3]} 42... Ra2+ {[%clk
0:00:21.2]} 43. Kg3 {[%clk 0:00:47.9]} 43... g5 {[%clk 0:00:22.8]} 44. hxg5
{[%clk 0:00:48.7]} 44... hxg5 {[%clk 0:00:24.7]} 45. Nd5 {[%clk 0:00:46.9]}
45... Ng6 {[%clk 0:00:20.4]} 46. Nf6 {[%clk 0:00:46.9]} 46... Nf4 {[%clk
0:00:19.1]} 47. Nh7+ {[%clk 0:00:47.5]} 47... Kg7 {[%clk 0:00:14.7]} 48. Nxg5
{[%clk 0:00:49.4]} 48... Ne2+ {[%clk 0:00:15.8]} 49. Kh4 {[%clk 0:00:50.6]}
49... Nf4 {[%clk 0:00:14.2]} 50. Rxf7+ {[%clk 0:00:49.8]} 50... Kg6 {[%clk
0:00:14.7]} 51. Rxf4 {[%clk 0:00:51.7]} 51... d5 {[%clk 0:00:13.7]} 52. exd5
{[%clk 0:00:46.2]} 52... Ra5 {[%clk 0:00:07.8]} 53. c4 {[%clk 0:00:44.9]} 53...
Ra7 {[%clk 0:00:08.9]} 54. Ne4 {[%clk 0:00:45.4]} 54... Rh7+ {[%clk 0:00:09.6]}
55. Kg3 {[%clk 0:00:47.3]} 55... Re7 {[%clk 0:00:10.5]} 56. d6 {[%clk
0:00:47.7]} 56... Rd7 {[%clk 0:00:11.7]} 57. c5 {[%clk 0:00:48.9]} 57... Ra7
{[%clk 0:00:13.6]} 58. c6 {[%clk 0:00:50.1]} 58... Ra1 {[%clk 0:00:14.3]} 59. d7
{[%clk 0:00:51.3]} 59... Rg1+ {[%clk 0:00:16.2]} 60. Kf2 {[%clk 0:00:52.2]}
60... Rd1 {[%clk 0:00:18.1]} 61. c7 {[%clk 0:00:51.1]} 61... Rc1 {[%clk
0:00:19.5]} 62. c8=Q {[%clk 0:00:50]} 62... Rb1 {[%clk 0:00:20.8]} 63. Qg8+
{[%clk 0:00:50.5]} 63... Kh6 {[%clk 0:00:21.5]} 64. Rf6# {[%clk 0:00:50.3]} 1-0

[Event "*** Titled Tuesday 3|2 Blitz (Early)"]
[Site "Chess.com"]
[Date "2016.12.06"]
[Round "7"]
[White "RodinMihail"]
[Black "Mornar1951"]
[Result "0-1"]
[WhiteElo "2422"]
[BlackElo "2590"]
[TimeControl "180+2"]
[EndTime "12:33:25 PST"]
[Termination "Mornar1951 won by resignation"]

1. e4 {[%clk 0:03:02]} 1... c5 {[%clk 0:00:53.2]} 2. Nf3 {[%clk 0:03:01.1]} 2...
d6 {[%clk 0:00:50.5]} 3. d4 {[%clk 0:03:02]} 3... cxd4 {[%clk 0:00:52.4]} 4.
Nxd4 {[%clk 0:03:03.9]} 4... Nf6 {[%clk 0:00:53.5]} 5. Nc3 {[%clk 0:03:05.5]}
5... Nc6 {[%clk 0:00:54.5]} 6. Bg5 {[%clk 0:03:05.3]} 6... a6 {[%clk 0:00:54.9]}
7. Qd2 {[%clk 0:03:05.8]} 7... Nxd4 {[%clk 0:00:55.7]} 8. Qxd4 {[%clk
0:03:06.5]} 8... Qa5 {[%clk 0:00:56.8]} 9. Bd2 {[%clk 0:03:06.4]} 9... e5 {[%clk
0:00:57]} 10. Qe3 {[%clk 0:03:04]} 10... Be6 {[%clk 0:00:44.7]} 11. Qg3 {[%clk
0:03:03]} 11... Qc7 {[%clk 0:00:32.6]} 12. Bd3 {[%clk 0:03:03.3]} 12... Be7
{[%clk 0:00:23.9]} 13. O-O {[%clk 0:02:42.8]} 13... O-O {[%clk 0:00:23.9]} 14.
Bg5 {[%clk 0:02:34]} 14... Nh5 {[%clk 0:00:19.9]} 15. Qh4 {[%clk 0:02:34.4]}
15... Bxg5 {[%clk 0:00:21]} 16. Qxg5 {[%clk 0:02:32]} 16... Nf6 {[%clk
0:00:17.8]} 17. Kh1 {[%clk 0:02:11.5]} 17... h6 {[%clk 0:00:18.1]} 18. Qh4
{[%clk 0:02:11.6]} 18... Qb6 {[%clk 0:00:17.5]} 19. b3 {[%clk 0:02:08.4]} 19...
Rac8 {[%clk 0:00:18.7]} 20. Ne2 {[%clk 0:02:09.3]} 20... d5 {[%clk 0:00:20.2]}
21. exd5 {[%clk 0:02:07.9]} 21... Bxd5 {[%clk 0:00:21]} 22. c4 {[%clk
0:02:04.7]} 22... Bc6 {[%clk 0:00:22.1]} 23. Nc3 {[%clk 0:02:03.2]} 23... Rcd8
{[%clk 0:00:22.3]} 24. Rad1 {[%clk 0:01:59.6]} 24... Rd4 {[%clk 0:00:23]} 25.
Qh3 {[%clk 0:01:48.8]} 25... Rfd8 {[%clk 0:00:22]} 26. Ne2 {[%clk 0:01:40.3]}
26... R4d7 {[%clk 0:00:15.4]} 27. Qg3 {[%clk 0:01:19.3]} 27... Be4 {[%clk
0:00:14.3]} 28. Nc1 {[%clk 0:01:11.3]} 28... Qa5 {[%clk 0:00:13.8]} 29. Qe3
{[%clk 0:00:59.6]} 29... Qc3 {[%clk 0:00:12.6]} 30. Be2 {[%clk 0:00:50.6]} 30...
Qxe3 {[%clk 0:00:10.9]} 31. fxe3 {[%clk 0:00:52.5]} 31... Rd2 {[%clk 0:00:10.3]}
32. Kg1 {[%clk 0:00:43.8]} 32... Kf8 {[%clk 0:00:10.9]} 33. h3 {[%clk
0:00:44.3]} 33... Ke7 {[%clk 0:00:11.6]} 34. Rfe1 {[%clk 0:00:41.3]} 34... Bc6
{[%clk 0:00:12.1]} 35. Kf1 {[%clk 0:00:39.2]} 35... Ne4 {[%clk 0:00:12.9]} 36.
Rxd2 {[%clk 0:00:33]} 36... Rxd2 {[%clk 0:00:12.9]} 37. Rd1 {[%clk 0:00:29.2]}
37... Rb2 {[%clk 0:00:10.3]} 38. Ke1 {[%clk 0:00:28.2]} 38... Ng3 {[%clk
0:00:08.2]} 39. Bf3 {[%clk 0:00:26.2]} 39... Bxf3 {[%clk 0:00:09.3]} 40. gxf3
{[%clk 0:00:27.5]} 40... Rh2 {[%clk 0:00:11.2]} 41. Rd5 {[%clk 0:00:25.5]} 41...
f6 {[%clk 0:00:11.4]} 42. Nd3 {[%clk 0:00:25]} 42... Re2+ {[%clk 0:00:11.3]} 43.
Kd1 {[%clk 0:00:26.3]} 43... Rxe3 {[%clk 0:00:12.8]} 44. Nc5 {[%clk 0:00:28]}
44... b6 {[%clk 0:00:12.7]} 45. Nxa6 {[%clk 0:00:28.8]} 45... Rxf3 {[%clk
0:00:14.1]} 46. Nc7 {[%clk 0:00:28.6]} 46... e4 {[%clk 0:00:15.2]} 47. Rd2
{[%clk 0:00:26.2]} 47... e3 {[%clk 0:00:16.4]} 48. Nd5+ {[%clk 0:00:27.1]} 48...
Kf7 {[%clk 0:00:17.4]} 49. Nxe3 {[%clk 0:00:28.3]} 49... Rxe3 {[%clk 0:00:18.9]}
50. Rd6 {[%clk 0:00:28.9]} 50... Re6 {[%clk 0:00:18.2]} 51. Rd7+ {[%clk
0:00:30.1]} 51... Kg6 {[%clk 0:00:19.2]} 52. a4 {[%clk 0:00:29.9]} 52... Ne4
{[%clk 0:00:19.8]} 53. Kc2 {[%clk 0:00:30.3]} 53... Nc5 {[%clk 0:00:20.5]} 54.
Rd2 {[%clk 0:00:31.1]} 54... Re3 {[%clk 0:00:21.5]} 55. a5 {[%clk 0:00:31.3]}
55... bxa5 {[%clk 0:00:22]} 56. Rd5 {[%clk 0:00:32.5]} 56... Nxb3 {[%clk
0:00:22.8]} 57. c5 {[%clk 0:00:33.8]} 57... Nxc5 {[%clk 0:00:21.8]} 58. Rxc5
{[%clk 0:00:34.6]} 58... a4 {[%clk 0:00:23.5]} 59. Ra5 {[%clk 0:00:35.8]} 59...
Rxh3 {[%clk 0:00:21.9]} 60. Rxa4 {[%clk 0:00:36.6]} 60... Rh5 {[%clk 0:00:22.8]}
61. Kd2 {[%clk 0:00:37.4]} 61... Re5 {[%clk 0:00:24.7]} 62. Rg4+ {[%clk
0:00:37.2]} 62... Kh7 {[%clk 0:00:25.3]} 63. Kd3 {[%clk 0:00:38.2]} 63... g5
{[%clk 0:00:25.7]} 64. Kd4 {[%clk 0:00:39.2]} 64... h5 {[%clk 0:00:27.1]} 65.
Rg1 {[%clk 0:00:37.8]} 65... Kg6 {[%clk 0:00:29]} 0-1

[Event "*** Titled Tuesday 3|2 Blitz (Early)"]
[Site "Chess.com"]
[Date "2016.12.06"]
[Round "7"]
[White "Firebullet"]
[Black "SCIM"]
[Result "1-0"]
[WhiteElo "2331"]
[BlackElo "2287"]
[TimeControl "180+2"]
[EndTime "12:33:35 PST"]
[Termination "Firebullet won by resignation"]

1. d4 {[%clk 0:03:02]} 1... Nf6 {[%clk 0:02:54]} 2. c4 {[%clk 0:03:02.7]} 2...
g6 {[%clk 0:02:52.5]} 3. f3 {[%clk 0:03:03.5]} 3... Bg7 {[%clk 0:02:48.1]} 4. e4
{[%clk 0:03:04.4]} 4... d6 {[%clk 0:02:47.1]} 5. Nc3 {[%clk 0:03:04.1]} 5... O-O
{[%clk 0:02:48.4]} 6. Be3 {[%clk 0:03:04.2]} 6... c5 {[%clk 0:02:49.8]} 7. Nge2
{[%clk 0:03:04.5]} 7... Nc6 {[%clk 0:02:49.4]} 8. Qd2 {[%clk 0:03:05.2]} 8... a6
{[%clk 0:02:37.8]} 9. d5 {[%clk 0:02:55.4]} 9... Ne5 {[%clk 0:02:38.2]} 10. Nc1
{[%clk 0:02:50.5]} 10... e6 {[%clk 0:02:28.8]} 11. Be2 {[%clk 0:02:41]} 11...
exd5 {[%clk 0:02:28.5]} 12. cxd5 {[%clk 0:02:42.9]} 12... b5 {[%clk 0:02:27.6]}
13. O-O {[%clk 0:02:42.3]} 13... Re8 {[%clk 0:02:20.6]} 14. h3 {[%clk
0:02:37.9]} 14... Bd7 {[%clk 0:02:12.5]} 15. Rb1 {[%clk 0:02:21.6]} 15... Rb8
{[%clk 0:02:07.6]} 16. b3 {[%clk 0:02:19.4]} 16... b4 {[%clk 0:01:58.5]} 17. Nd1
{[%clk 0:02:19.9]} 17... Bb5 {[%clk 0:01:59.4]} 18. Nb2 {[%clk 0:02:19.3]} 18...
Nh5 {[%clk 0:01:55.3]} 19. Re1 {[%clk 0:02:12.1]} 19... Ng3 {[%clk 0:01:45.3]}
20. Bxb5 {[%clk 0:02:04.5]} 20... axb5 {[%clk 0:01:44.5]} 21. Qf2 {[%clk
0:01:59.1]} 21... Nh5 {[%clk 0:01:34.2]} 22. Nbd3 {[%clk 0:01:45.2]} 22... Bf6
{[%clk 0:01:24.9]} 23. Rd1 {[%clk 0:01:36.3]} 23... Bh4 {[%clk 0:01:23.5]} 24.
Qd2 {[%clk 0:01:36.3]} 24... Bg3 {[%clk 0:01:16.7]} 25. Ne2 {[%clk 0:01:29.8]}
25... Bh4 {[%clk 0:01:13.2]} 26. Nxe5 {[%clk 0:01:30.1]} 26... Rxe5 {[%clk
0:01:12.6]} 27. Nf4 {[%clk 0:01:26.4]} 27... Nxf4 {[%clk 0:01:06.4]} 28. Bxf4
{[%clk 0:01:27]} 28... Re8 {[%clk 0:01:00.3]} 29. Qd3 {[%clk 0:01:13.2]} 29...
Bf6 {[%clk 0:00:59.6]} 30. Rd2 {[%clk 0:01:12.1]} 30... Bc3 {[%clk 0:00:58.5]}
31. Rc2 {[%clk 0:01:13.4]} 31... Bd4+ {[%clk 0:00:58.6]} 32. Be3 {[%clk
0:01:13.3]} 32... Be5 {[%clk 0:00:56]} 33. Bc1 {[%clk 0:01:10.9]} 33... Qh4
{[%clk 0:00:55.8]} 34. Bb2 {[%clk 0:01:09.5]} 34... h5 {[%clk 0:00:45]} 35. Bxe5
{[%clk 0:01:09.4]} 35... Rxe5 {[%clk 0:00:45.3]} 36. Rf2 {[%clk 0:00:57.3]}
36... Qf4 {[%clk 0:00:44.7]} 37. Rd1 {[%clk 0:00:44.9]} 37... Re7 {[%clk
0:00:43.6]} 38. Rdd2 {[%clk 0:00:45.1]} 38... Rc7 {[%clk 0:00:42.5]} 39. Rc2
{[%clk 0:00:46.4]} 39... Ra7 {[%clk 0:00:34.9]} 40. Rf1 {[%clk 0:00:45.9]} 40...
Re7 {[%clk 0:00:34.8]} 41. Rff2 {[%clk 0:00:46.7]} 41... Rc7 {[%clk 0:00:31.4]}
42. Rf1 {[%clk 0:00:46.9]} 42... Qg3 {[%clk 0:00:31.9]} 43. Rff2 {[%clk
0:00:45.9]} 43... Re7 {[%clk 0:00:28.3]} 44. Rfe2 {[%clk 0:00:44.8]} 44... Qe5
{[%clk 0:00:28.5]} 45. Rf2 {[%clk 0:00:45.2]} 45... h4 {[%clk 0:00:26.7]} 46.
Rce2 {[%clk 0:00:42.6]} 46... Qc3 {[%clk 0:00:24.1]} 47. Qd1 {[%clk 0:00:34]}
47... c4 {[%clk 0:00:19]} 48. Rc2 {[%clk 0:00:34.4]} 48... Qe3 {[%clk
0:00:17.8]} 49. bxc4 {[%clk 0:00:33.3]} 49... bxc4 {[%clk 0:00:18.9]} 50. Rxc4
{[%clk 0:00:33.9]} 50... Ra7 {[%clk 0:00:20.4]} 51. Qb3 {[%clk 0:00:25.5]} 51...
Qe1+ {[%clk 0:00:19.8]} 52. Rf1 {[%clk 0:00:26.7]} 52... Qd2 {[%clk 0:00:20.8]}
53. Rc2 {[%clk 0:00:22.3]} 53... Qd4+ {[%clk 0:00:21]} 54. Kh1 {[%clk
0:00:22.7]} 54... Ra3 {[%clk 0:00:21.8]} 55. Qb2 {[%clk 0:00:21.6]} 55... Qd3
{[%clk 0:00:18.6]} 56. Rfc1 {[%clk 0:00:22.5]} 56... Kh7 {[%clk 0:00:16.7]} 57.
Qf6 {[%clk 0:00:21.4]} 57... Kg8 {[%clk 0:00:12.4]} 58. Rc8+ {[%clk 0:00:20.3]}
1-0